[Event "EYCC 2017"]
[Site "Mamaia"]
[Date "2017.09.07"]
[Round "3"]
[White "Diakonova, Ekaterina"]
[Black "Gitu, Paula-Alexandra"]
[Result "1-0"]
[ECO "B01"]
[WhiteElo "2276"]
[BlackElo "1948"]
[Annotator "NA"]
[PlyCount "67"]
[EventDate "2017.??.??"]
[EventType "swiss"]
[EventCountry "ROU"]
[SourceTitle "playchess.com"]
[Source "ChessBase"]
[SourceQuality "1"]
[TimeControl "40/5400+30:1800+30"]

1. e4 {[%emt 0:00:00]} d5 {[%emt 0:00:07]} 2. exd5 {[%emt 0:00:00]} Qxd5 {[%emt 0:00:03]} 3. Nc3 {[%emt 0:00:00]} Qd6 {[%emt 0:00:05]} 4. d4 {[%emt 0:00:00]} Nf6 {[%emt 0:00:05]} 5. g3 {[%emt 0:00:17]} c6 {[%emt 0:00:12]} 6. Bg2 {[%emt 0:00:05]} Bf5 {[%emt 0:11:58]} 7. Nf3 {[%emt 0:00:36]} e6 $14 {[%emt 0:01:45] LiveBook: 50 Games} 8. Bf4 {[%emt 0:04:19]} Qd8 {[%emt 0:03:12]} 9. Nh4 {[%emt 0:05:19]} Bg6 {[%emt 0:01:43]} 10. Nxg6 {[%emt 0:01:16]} hxg6 {[%emt 0:00:05]} 11. Qd3 {[%emt 0:00:33]} Nbd7 {[%emt 0:04:31]} 12. O-O-O {[%emt 0:05:06]} Nb6 {[%emt 0:07:50]} 13. Kb1 {[%emt 0:03:13]} Be7 {[%emt 0:04:31]} 14. Be5 {[%emt 0:08:41]} Bd6 {[%emt 0:09:55]} 15. f4 {[%emt 0:02:19]} Qd7 {[%emt 0:09:38]} 16. Ne4 {[%emt 0:04:00]} Nxe4 {[%emt 0:03:34]} 17. Qxe4 {[%emt 0:00:41]} Rg8 {[%emt 0:02:07]} 18. Bxd6 {[%emt 0:07:39]} Qxd6 {[%emt 0:00:04]} 19. h4 {[%emt 0:00:10]} O-O-O {[%emt 0:03:08]} 20. c3 {[%emt 0:05:14]} Nd5 {[%emt 0:09:36]} 21. Bf3 {[%emt 0:02:28]} Kc7 {[%emt 0:02:52]} 22. Rhe1 {[%emt 0:01:50]} Nb6 {[%emt 0:05:50]} 23. Qe2 {[%emt 0:02:16]} Nd5 {[%emt 0:02:01]} 24. Qg2 {[%emt 0:03:44]} Nb6 {[%emt 0:02:57]} 25. Kc2 {[%emt 0:01:50]} a5 {[%emt 0:04:14]} 26. Qf1 {[%emt 0:09:14]} a4 {[%emt 0:03:29]} 27. a3 {[%emt 0:04:43]} Nd5 {[%emt 0:02:30]} 28. c4 {[%emt 0:01:08]} Ne7 {[%emt 0:00:50]} 29. Qf2 {[%emt 0:04:48]} Qd7 {[%emt 0:04:53]} 30. Kb1 {[%emt 0:03:55]} Rge8 {[%emt 0:01:03]} 31. g4 {[%emt 0:07:33]} b6 {[%emt 0:00:29]} 32. Qc2 {[%emt 0:00:38]} Ra8 {[%emt 0:00:06]} 33. d5 {[%emt 0:00:18]} Nc8 {[%emt 0:01:03]} 34. dxc6 {[%emt 0:00:24]} 1-0

[Event "EYCC 2017"]
[Site "Mamaia"]
[Date "2017.09.07"]
[Round "3"]
[White "Krstulovic, Alex"]
[Black "Mammadov, Sadig"]
[Result "1/2-1/2"]
[ECO "E97"]
[WhiteElo "2261"]
[BlackElo "2099"]
[Annotator "NA"]
[PlyCount "107"]
[EventDate "2017.??.??"]
[EventType "swiss"]
[EventCountry "ROU"]
[SourceTitle "playchess.com"]
[Source "ChessBase"]
[SourceQuality "1"]
[TimeControl "40/5400+30:1800+30"]

1. d4 {[%emt 0:00:00]} Nf6 {[%emt 0:00:05]} 2. c4 {[%emt 0:00:00]} g6 {[%emt 0:00:04]} 3. Nc3 {[%emt 0:00:00]} Bg7 {[%emt 0:00:01]} 4. e4 {[%emt 0:00:02]} d6 {[%emt 0:00:05]} 5. Nf3 {[%emt 0:00:10]} O-O {[%emt 0:00:10]} 6. Be2 {[%emt 0:00:06]} e5 {[%emt 0:00:18]} 7. O-O {[%emt 0:00:08]} Nc6 {[%emt 0:00:06]} 8. d5 {[%emt 0:00:08]} Ne7 {[%emt 0:00:04]} 9. Bg5 {[%emt 0:00:07]} Ne8 {[%emt 0:01:19]} 10. Nd2 {[%emt 0:00:42]} h6 {[%emt 0:00:42]} 11. Be3 {[%emt 0:01:04]} f5 {[%emt 0:00:28]} 12. f3 {[%emt 0:00:08]} f4 {[%emt 0:07:53]} 13. Bf2 {[%emt 0:00:24]} g5 {[%emt 0:00:22]} 14. c5 {[%emt 0:03:16]} Ng6 {[%emt 0:05:45]} 15. Nc4 {[%emt 0:05:58]} Rf7 {[%emt 0:00:44]} 16. cxd6 {[%emt 0:05:12]} Nxd6 {[%emt 0:00:21]} 17. Rc1 {[%emt 0:02:39]} h5 {[%emt 0:17:41]} 18. Nxd6 {[%emt 0:12:06]} cxd6 {[%emt 0:00:06]} 19. Rc2 {[%emt 0:01:05]} Bf8 {[%emt 0:06:13]} 20. Nb5 {[%emt 0:02:33]} Bd7 {[%emt 0:10:00]} 21. Nc7 {[%emt 0:03:55]} Rc8 {[%emt 0:05:58]} 22. Ne6 {[%emt 0:02:32]} Bxe6 {[%emt 0:01:37]} 23. dxe6 {[%emt 0:00:09]} Rfc7 {[%emt 0:00:03]} 24. Rxc7 {[%emt 0:00:54]} Qxc7 {[%emt 0:00:06]} 25. Qb3 {[%emt 0:01:23]} Be7 {[%emt 0:00:33]} 26. Bxa7 {[%emt 0:04:53]} Kg7 {[%emt 0:04:27]} 27. Bf2 {[%emt 0:09:45]} Nf8 {[%emt 0:04:04]} 28. h3 {[%emt 0:14:29]} Kf6 {[%emt 0:01:40]} 29. Qd5 {[%emt 0:06:29]} Nxe6 {[%emt 0:08:31]} 30. Bb5 {[%emt 0:00:35]} Ng7 {[%emt 0:01:48]} 31. b3 {[%emt 0:04:27]} Rf8 {[%emt 0:03:34]} 32. a4 {[%emt 0:01:50]} Kg6 {[%emt 0:02:27]} 33. Bc4 {[%emt 0:04:12]} Qc8 {[%emt 0:02:29]} 34. Rc1 {[%emt 0:05:11]} Kh6 {[%emt 0:00:09]} 35. Qd1 {[%emt 0:00:19]} Qb8 {[%emt 0:04:13]} 36. a5 {[%emt 0:01:06]} Ne8 {[%emt 0:03:10]} 37. b4 {[%emt 0:01:40]} Nf6 {[%emt 0:02:01]} 38. Bd5 {[%emt 0:04:49]} Rc8 {[%emt 0:01:20]} 39. Rxc8 {[%emt 0:01:08]} Qxc8 {[%emt 0:00:01]} 40. Bb6 {[%emt 0:00:00]} g4 {[%emt 0:06:27]} 41. hxg4 {[%emt 0:08:11]} hxg4 {[%emt 0:00:11]} 42. fxg4 {[%emt 0:00:36]} Kg5 {[%emt 0:00:24]} 43. Kf2 {[%emt 0:08:57]} Qc3 {[%emt 0:04:14]} 44. Bxb7 {[%emt 0:03:56]} Nxg4+ {[%emt 0:03:57]} 45. Ke2 {[%emt 0:02:13]} Qxb4 {[%emt 0:01:28]} 46. Qd5 {[%emt 0:02:42]} Qb2+ {[%emt 0:01:15]} 47. Kd3 {[%emt 0:00:17]} Qa3+ {[%emt 0:03:08]} 48. Kc2 {[%emt 0:01:22]} Ne3+ 49. Bxe3 fxe3 50. Qg8+ Kf6 51. Qh8+ Kf7 52. Qh7+ Kf6 53. Qh8+ Kf7 54. Bd5+ {Kf6 Bb7+ Kg5 Qg8+ Kf4 Qf7+ Kg3 Qa2 Qxa2+} 1/2-1/2

[Event "EYCC 2017"]
[Site "Mamaia"]
[Date "2017.09.07"]
[Round "3"]
[White "Antova, Gabriela"]
[Black "Louka, Magdalini"]
[Result "1/2-1/2"]
[ECO "E12"]
[WhiteElo "2256"]
[BlackElo "1814"]
[Annotator "NA"]
[PlyCount "109"]
[EventDate "2017.??.??"]
[EventType "swiss"]
[EventCountry "ROU"]
[SourceTitle "playchess.com"]
[Source "ChessBase"]
[SourceQuality "1"]
[TimeControl "40/5400+30:1800+30"]

1. d4 {[%emt 0:00:00]} Nf6 {[%emt 0:00:07]} 2. Nf3 {[%emt 0:00:00]} e6 {[%emt 0:00:08]} 3. c4 {[%emt 0:00:00]} b6 {[%emt 0:00:20]} 4. a3 {[%emt 0:01:16]} Ba6 {[%emt 0:00:51]} 5. Qc2 {[%emt 0:04:57]} Bb7 {[%emt 0:00:21]} 6. Nc3 {[%emt 0:00:40]} c5 {[%emt 0:00:21]} 7. e4 {[%emt 0:00:26]} cxd4 {[%emt 0:02:33]} 8. Nxd4 {[%emt 0:00:07]} Bc5 {[%emt 0:00:12]} 9. Nb3 {[%emt 0:00:23]} Nc6 {[%emt 0:08:03]} 10. Bg5 {[%emt 0:05:46]} O-O {[%emt 0:12:02]} 11. Bd3 {[%emt 0:04:35]} h6 {[%emt 0:07:26]} 12. Bh4 {[%emt 0:01:35]} Rc8 {[%emt 0:10:08]} 13. O-O {[%emt 0:18:03]} Be7 {[%emt 0:10:28]} 14. f4 {[%emt 0:04:44]} d5 {[%emt 0:07:07]} 15. e5 {[%emt 0:05:16]} Ng4 {[%emt 0:05:45]} 16. Bxe7 {[%emt 0:01:44]} Nxe7 {[%emt 0:01:18]} 17. Qe2 {[%emt 0:02:21]} dxc4 {[%emt 0:02:28]} 18. Bxc4 {[%emt 0:01:17]} Rxc4 {[%emt 0:03:45]} 19. Qxc4 {[%emt 0:01:09]} Ne3 {[%emt 0:00:11]} 20. Qe2 {[%emt 0:01:31]} Nxf1 {[%emt 0:02:19]} 21. Rxf1 {[%emt 0:00:21]} Nf5 {[%emt 0:00:17]} 22. Rd1 {[%emt 0:06:07]} Qa8 {[%emt 0:05:05]} 23. Qf2 {[%emt 0:03:30]} Bxg2 {[%emt 0:02:30]} 24. Qxg2 {[%emt 0:02:04]} Qxg2+ {[%emt 0:00:05]} 25. Kxg2 {[%emt 0:00:04]} Ne3+ {[%emt 0:00:03]} 26. Kf2 {[%emt 0:00:51]} Nxd1+ {[%emt 0:00:08]} 27. Nxd1 {[%emt 0:00:01]} Rd8 {[%emt 0:00:27]} 28. Ke2 {[%emt 0:00:30]} f6 {[%emt 0:00:52]} 29. Nf2 {[%emt 0:10:16]} Kf7 {[%emt 0:03:36]} 30. Ke3 {[%emt 0:04:59]} Rd5 {[%emt 0:01:31]} 31. Nd3 {[%emt 0:00:19]} g5 {[%emt 0:01:43]} 32. fxg5 {[%emt 0:01:31]} hxg5 {[%emt 0:01:45]} 33. exf6 {[%emt 0:01:00]} Kxf6 {[%emt 0:00:09]} 34. Nd2 {[%emt 0:04:59]} Rd8 {[%emt 0:04:18]} 35. Ne4+ {[%emt 0:02:47]} Kf5 {[%emt 0:00:31]} 36. Ndf2 {[%emt 0:05:36]} Rh8 {[%emt 0:02:24]} 37. Ng3+ {[%emt 0:01:06]} Kg6 {[%emt 0:01:29]} 38. Ng4 {[%emt 0:01:56]} Rc8 {[%emt 0:01:15]} 39. Ne5+ {[%emt 0:01:13]} Kf6 {[%emt 0:01:12]} 40. Nd3 {[%emt 0:00:00]} Rc2 {[%emt 0:02:03]} 41. h3 {[%emt 0:09:30]} Rc7 {[%emt 0:09:14]} 42. Ne4+ {[%emt 0:01:45]} Kg6 {[%emt 0:01:38]} 43. Ne5+ {[%emt 0:01:52]} Kf5 {[%emt 0:03:13]} 44. Nf3 {[%emt 0:01:25]} Rc1 {[%emt 0:05:03]} 45. Nd4+ {[%emt 0:07:23]} Kg6 {[%emt 0:04:31]} 46. Nxe6 {[%emt 0:07:57]} Rb1 {[%emt 0:00:55]} 47. b4 {[%emt 0:01:55]} Rb3+ {[%emt 0:00:25]} 48. Kd4 {[%emt 0:01:39]} Rxh3 {[%emt 0:00:39]} 49. N6xg5 {[%emt 0:01:02]} Rxa3 {[%emt 0:00:10]} 50. Ne6 {[%emt 0:00:45]} Rb3 {[%emt 0:01:28]} 51. Nf4+ {[%emt 0:01:04]} Kf5 {[%emt 0:02:08]} 52. Nd3 {[%emt 0:01:30]} a5 {[%emt 0:01:46]} 53. bxa5 {[%emt 0:00:41]} bxa5 {[%emt 0:00:07]} 54. Nc3 {[%emt 0:00:37]} Rxc3 {[%emt 0:02:51]} 55. Kxc3 {[%emt 0:00:02] Ke5} 1/2-1/2

[Event "EYCC 2017"]
[Site "Mamaia"]
[Date "2017.09.07"]
[Round "3"]
[White "Sevgi, Volkan"]
[Black "Tica, Sven"]
[Result "1/2-1/2"]
[ECO "B12"]
[WhiteElo "2240"]
[BlackElo "2389"]
[Annotator "NA"]
[PlyCount "40"]
[EventDate "2017.??.??"]
[EventType "swiss"]
[EventCountry "ROU"]
[SourceTitle "playchess.com"]
[Source "ChessBase"]
[SourceQuality "1"]
[TimeControl "40/5400+30:1800+30"]

1. e4 {[%emt 0:00:00]} c6 {[%emt 0:00:05]} 2. d4 {[%emt 0:00:00]} d5 {[%emt 0:00:05]} 3. e5 {[%emt 0:00:00]} Bf5 {[%emt 0:00:28]} 4. Nf3 {[%emt 0:00:00]} e6 {[%emt 0:00:09]} 5. Be2 {[%emt 0:00:00]} c5 {[%emt 0:01:57]} 6. Be3 {[%emt 0:00:04]} cxd4 {[%emt 0:00:06]} 7. Nxd4 {[%emt 0:00:03]} Ne7 {[%emt 0:00:08]} 8. c4 {[%emt 0:00:10]} Nbc6 {[%emt 0:00:24]} 9. Qa4 {[%emt 0:00:03]} a6 {[%emt 0:00:09]} 10. Nc3 {[%emt 0:00:05]} dxc4 {[%emt 0:00:05]} 11. O-O-O {[%emt 0:00:04]} Qc8 {[%emt 0:01:55]} 12. Bf3 {[%emt 0:03:56]} Bd3 {[%emt 0:21:24]} 13. Nxc6 {[%emt 0:16:46]} Nxc6 {[%emt 0:01:24]} 14. Bxc6+ Qxc6 {[%emt 0:02:37]} 15. Qxc6+ {[%emt 0:00:28]} bxc6 {[%emt 0:00:05]} 16. Na4 {[%emt 0:03:01]} Rd8 {[%emt 0:15:16]} 17. Nc5 {[%emt 0:02:11]} Rd5 {[%emt 0:13:21]} 18. Nxd3 {[%emt 0:08:37]} cxd3 {[%emt 0:00:43]} 19. Kb1 {[%emt 0:00:09]} Be7 {[%emt 0:11:36]} 20. Rc1 Kd7 1/2-1/2

[Event "EYCC 2017"]
[Site "Mamaia"]
[Date "2017.09.07"]
[Round "3"]
[White "Haring, Filip"]
[Black "Henderson de La Fuente, Lance"]
[Result "0-1"]
[ECO "B85"]
[WhiteElo "2232"]
[BlackElo "2408"]
[Annotator "ChessBase"]
[PlyCount "120"]
[EventDate "2017.??.??"]
[EventType "swiss"]
[EventCountry "ROU"]
[SourceTitle "playchess.com"]
[Source "ChessBase"]
[SourceQuality "1"]
[TimeControl "40/5400+30:1800+30"]

1. e4 {[%emt 0:00:00]} c5 {[%emt 0:00:23]} 2. Nf3 {[%emt 0:00:00]} e6 {[%emt 0:00:14]} 3. d4 {[%emt 0:00:28]} cxd4 {[%emt 0:00:32]} 4. Nxd4 {[%emt 0:01:31]} Nc6 {[%emt 0:00:11]} 5. Nc3 {[%emt 0:01:33]} Qc7 {[%emt 0:00:14]} 6. Be2 {[%emt 0:01:43]} a6 {[%emt 0:00:21]} 7. O-O {[%emt 0:00:53]} Nf6 {[%emt 0:00:13]} 8. Be3 {[%emt 0:01:03]} Be7 {[%emt 0:00:18]} 9. f4 {[%emt 0:02:12]} d6 {[%emt 0:00:17]} 10. Qe1 {[%emt 0:02:28]} O-O {[%emt 0:00:51]} 11. Qg3 {[%emt 0:01:26]} Nxd4 {[%emt 0:00:13]} 12. Bxd4 {[%emt 0:00:09]} b5 {[%emt 0:00:09]} 13. a3 {[%emt 0:01:37]} Bb7 {[%emt 0:00:13]} 14. Kh1 {[%emt 0:02:32]} Rad8 {[%emt 0:00:38]} 15. Bd3 {[%emt 0:02:33]} Rd7 {[%emt 0:00:20]} 16. Rae1 {[%emt 0:07:05]} Re8 {[%emt 0:00:30]} 17. Qh3 {[%emt 0:07:03]} e5 {[%emt 0:00:36]} 18. fxe5 {[%emt 0:20:07]} dxe5 {[%emt 0:00:10]} 19. Nd5 {[%emt 0:03:32]} Bxd5 {[%emt 0:00:17]} 20. exd5 {[%emt 0:00:24]} Rxd5 {[%emt 0:00:09]} 21. Bc3 {[%emt 0:12:01]} g6 {[%emt 0:07:52]} 22. Qg3 {[%emt 0:06:47]} Bd8 {[%emt 0:04:06]} 23. Re2 {[%emt 0:04:09]} Qd6 {[%emt 0:25:17]} 24. Bb4 {[%emt 0:09:40]} Qd7 {[%emt 0:11:30]} 25. Bc3 {[%emt 0:04:55]} e4 {[%emt 0:05:49]} 26. Bxf6 {[%emt 0:00:12]} exd3 {[%emt 0:01:41]} 27. Rxe8+ {[%emt 0:00:27]} Qxe8 {[%emt 0:00:02]} 28. cxd3 {[%emt 0:02:41]} Bxf6 {[%emt 0:01:55]} 29. Rxf6 {[%emt 0:00:04]} Rg5 {[%emt 0:15:55]} 30. Qf2 {[%emt 0:00:34]} Re5 {[%emt 0:00:01]} 31. h3 {[%emt 0:04:04]} Re2 {[%emt 0:09:00]} 32. Qf4 {[%emt 0:00:59]} Qa8 {[%emt 0:01:02]} 33. Qf1 {[%emt 0:00:54]} Rxb2 {[%emt 0:03:22]} 34. Rxf7 {[%emt 0:00:30]} Qxg2+ {[%emt 0:00:39]} 35. Qxg2 {[%emt 0:00:04]} Rxg2 {[%emt 0:00:02]} 36. Rf6 {[%emt 0:01:04]} Ra2 {[%emt 0:03:33]} 37. Rxa6 {[%emt 0:00:04]} b4 {[%emt 0:00:01]} 38. Rb6 {[%emt 0:00:22]} bxa3 {[%emt 0:00:03]} 39. Ra6 {[%emt 0:00:11]} Kf7 {[%emt 0:00:36]} 40. Kg1 {[%emt 0:00:00]} Ke7 {[%emt 0:00:08]} 41. d4 {[%emt 0:04:09]} g5 {[%emt 0:03:11]} 42. d5 {[%emt 0:08:30]} Kd7 {[%emt 0:00:14]} 43. Kh1 {[%emt 0:09:47]} h6 {[%emt 0:02:54]} 44. Kg1 {[%emt 0:02:06]} h5 {[%emt 0:06:43]} 45. Kh1 {[%emt 0:01:02]} g4 {[%emt 0:00:13]} 46. h4 {[%emt 0:01:22]} Ke7 {[%emt 0:08:36]} 47. Re6+ {[%emt 0:01:09]} Kf7 {[%emt 0:00:50]} 48. Re3 {[%emt 0:03:09]} Ra1+ {[%emt 0:01:13]} 49. Kg2 {[%emt 0:00:47]} a2 {[%emt 0:00:26]} 50. Ra3 {[%emt 0:01:04]} Kf6 {[%emt 0:00:20]} 51. d6 {[%emt 0:01:58]} Ke6 {[%emt 0:00:05]} 52. Ra6 {[%emt 0:00:16]} Kd7 {[%emt 0:00:03]} 53. Kh2 {[%emt 0:00:22]} Rd1 {[%emt 0:02:34]} 54. Rxa2 {[%emt 0:00:06]} Rd3 {[%emt 0:00:02]} 55. Ra7+ {[%emt 0:02:48]} Kxd6 {[%emt 0:00:20]} 56. Ra6+ {[%emt 0:00:09]} Ke5 {[%emt 0:02:51]} 57. Ra5+ {[%emt 0:00:12]} Kf4 {[%emt 0:00:07]} 58. Rxh5 {[%emt 0:00:30]} Rd2+ {[%emt 0:03:08]} 59. Kg1 {[%emt 0:00:05]} Kg3 {[%emt 0:00:06]} 60. Kf1 {[%emt 0:00:55]} Kh2 {[%emt 0:00:18]} 0-1

[Event "EYCC 2017"]
[Site "Mamaia"]
[Date "2017.09.07"]
[Round "3"]
[White "Sliwicka, Alicja"]
[Black "Koehler, Inken"]
[Result "1-0"]
[ECO "C10"]
[WhiteElo "2230"]
[BlackElo "1893"]
[Annotator "NA"]
[PlyCount "69"]
[EventDate "2017.??.??"]
[EventType "swiss"]
[EventCountry "ROU"]
[SourceTitle "playchess.com"]
[Source "ChessBase"]
[SourceQuality "1"]
[TimeControl "40/5400+30:1800+30"]

1. e4 {[%emt 0:00:00]} e6 {[%emt 0:00:09]} 2. d4 {[%emt 0:00:00]} d5 {[%emt 0:00:08]} 3. Nc3 {[%emt 0:00:00]} dxe4 {[%emt 0:00:18]} 4. Nxe4 {[%emt 0:00:00]} Nd7 {[%emt 0:00:16]} 5. Nf3 {[%emt 0:00:46]} Ngf6 {[%emt 0:00:39]} 6. Nxf6+ {[%emt 0:00:25]} Nxf6 {[%emt 0:00:17]} 7. Bd3 {[%emt 0:00:50]} c5 {[%emt 0:01:49]} 8. O-O {[%emt 0:04:34]} cxd4 {[%emt 0:01:19]} 9. Nxd4 {[%emt 0:03:17]} Be7 {[%emt 0:00:49]} 10. c3 {[%emt 0:03:44]} O-O {[%emt 0:01:34]} 11. a4 {[%emt 0:05:28]} Nd5 {[%emt 0:10:31]} 12. Qe2 {[%emt 0:09:04]} Bf6 {[%emt 0:08:35]} 13. Qe4 {[%emt 0:04:12]} g6 {[%emt 0:01:57]} 14. Bh6 {[%emt 0:01:15]} Re8 {[%emt 0:02:15]} 15. Rfd1 {[%emt 0:05:17]} Bd7 {[%emt 0:20:13]} 16. a5 {[%emt 0:04:57]} Qc7 {[%emt 0:03:20]} 17. Qf3 {[%emt 0:07:34]} Bh8 {[%emt 0:05:47]} 18. Be4 {[%emt 0:01:43]} Bc6 {[%emt 0:03:29]} 19. Nxc6 {[%emt 0:04:26]} bxc6 {[%emt 0:00:33]} 20. c4 {[%emt 0:05:58]} f5 {[%emt 0:12:03]} 21. Bxd5 {[%emt 0:03:21]} cxd5 {[%emt 0:05:37]} 22. cxd5 {[%emt 0:00:21]} Bxb2 {[%emt 0:01:13]} 23. Rab1 {[%emt 0:01:26]} Be5 {[%emt 0:01:25]} 24. dxe6 {[%emt 0:03:16]} Rad8 {[%emt 0:02:37]} 25. Rxd8 {[%emt 0:02:15]} Rxd8 {[%emt 0:02:47]} 26. Bg5 {[%emt 0:01:50]} Re8 {[%emt 0:05:53]} 27. Qd5 {[%emt 0:07:11]} Qd6 {[%emt 0:01:56]} 28. Qxd6 {[%emt 0:02:40]} Bxd6 {[%emt 0:00:06]} 29. Be3 {[%emt 0:02:49]} Re7 {[%emt 0:05:27]} 30. g3 {[%emt 0:02:46]} Kf8 {[%emt 0:01:50]} 31. a6 {[%emt 0:01:18]} Rxe6 {[%emt 0:00:33]} 32. Bxa7 {[%emt 0:01:45]} Bc7 {[%emt 0:00:24]} 33. Bc5+ {[%emt 0:00:27]} Ke8 {[%emt 0:00:20]} 34. a7 {[%emt 0:00:42]} Ra6 {[%emt 0:00:23]} 35. Rb8+ {[%emt 0:00:20]} 1-0

[Event "EYCC 2017"]
[Site "Mamaia"]
[Date "2017.09.07"]
[Round "3"]
[White "Ileana, George"]
[Black "Salemgareev, Tagir"]
[Result "0-1"]
[ECO "B94"]
[WhiteElo "2219"]
[BlackElo "2354"]
[Annotator "NA"]
[PlyCount "84"]
[EventDate "2017.??.??"]
[EventType "swiss"]
[EventCountry "ROU"]
[SourceTitle "playchess.com"]
[Source "ChessBase"]
[SourceQuality "1"]
[TimeControl "40/5400+30:1800+30"]

1. e4 {[%emt 0:00:00]} c5 {[%emt 0:00:05]} 2. Nf3 {[%emt 0:00:00]} d6 {[%emt 0:00:09]} 3. d4 {[%emt 0:00:00]} cxd4 {[%emt 0:00:04]} 4. Nxd4 {[%emt 0:00:00]} Nf6 {[%emt 0:00:05]} 5. Nc3 {[%emt 0:00:00]} a6 {[%emt 0:00:05]} 6. Bg5 {[%emt 0:00:28]} Nbd7 {[%emt 0:00:10]} 7. Qe2 {[%emt 0:00:54]} h6 {[%emt 0:11:37]} 8. Bh4 {[%emt 0:01:47]} g6 {[%emt 0:00:14]} 9. O-O-O {[%emt 0:00:41]} e5 {[%emt 0:00:22]} 10. Nb3 {[%emt 0:00:49]} b5 {[%emt 0:01:08]} 11. Nd5 {[%emt 0:09:52]} Bg7 {[%emt 0:13:58]} 12. Nxf6+ {[%emt 0:02:15]} Nxf6 {[%emt 0:00:28]} 13. Qd3 {[%emt 0:01:08]} Ra7 {[%emt 0:01:31]} 14. f3 {[%emt 0:05:24]} Rd7 {[%emt 0:02:16]} 15. Bxf6 {[%emt 0:03:33]} Qxf6 {[%emt 0:06:51]} 16. g3 {[%emt 0:00:15]} O-O {[%emt 0:01:38]} 17. Kb1 {[%emt 0:02:25]} d5 {[%emt 0:06:14]} 18. exd5 {[%emt 0:20:34]} e4 {[%emt 0:00:11]} 19. Qc3 {[%emt 0:00:04]} Qxc3 {[%emt 0:00:16]} 20. bxc3 {[%emt 0:00:03]} exf3 {[%emt 0:00:06]} 21. c4 {[%emt 0:00:09]} Rfd8 {[%emt 0:03:53]} 22. cxb5 {[%emt 0:01:14]} axb5 {[%emt 0:00:54]} 23. Bxb5 {[%emt 0:03:52]} Rxd5 {[%emt 0:00:17]} 24. Rxd5 {[%emt 0:01:08]} Rxd5 {[%emt 0:00:01]} 25. Bd3 {[%emt 0:00:15]} Bf5 {[%emt 0:06:30]} 26. Bxf5 {[%emt 0:05:07]} Rxf5 {[%emt 0:00:05]} 27. a4 {[%emt 0:00:37]} Bc3 {[%emt 0:02:06]} 28. Rf1 {[%emt 0:00:46]} g5 {[%emt 0:01:23]} 29. g4 {[%emt 0:02:12]} Rf4 {[%emt 0:01:04]} 30. a5 {[%emt 0:00:04]} h5 {[%emt 0:01:18]} 31. a6 {[%emt 0:03:28]} hxg4 {[%emt 0:02:40]} 32. Nc5 {[%emt 0:00:31]} Rb4+ {[%emt 0:00:37]} 33. Ka2 {[%emt 0:00:51]} Rb2+ {[%emt 0:01:43]} 34. Ka3 {[%emt 0:00:38]} Rb5 {[%emt 0:00:07]} 35. Nd3 {[%emt 0:01:30]} Ra5+ {[%emt 0:01:22]} 36. Kb3 {[%emt 0:00:07]} Bg7 {[%emt 0:00:48]} 37. c4 {[%emt 0:00:43]} Rxa6 {[%emt 0:01:59]} 38. c5 {[%emt 0:00:12]} f5 {[%emt 0:03:12]} 39. Nb4 {[%emt 0:00:49]} Ra8 {[%emt 0:00:37]} 40. Nd5 {[%emt 0:00:00]} Kf7 {[%emt 0:00:53]} 41. h3 {[%emt 0:01:00]} gxh3 {[%emt 0:00:46]} 42. Rxf3 {[%emt 0:00:06]} h2 {[%emt 0:00:06]} 0-1

[Event "EYCC 2017"]
[Site "Mamaia"]
[Date "2017.09.07"]
[Round "3"]
[White "Antolak, Julia"]
[Black "Gueci, Tea"]
[Result "0-1"]
[ECO "B97"]
[WhiteElo "2212"]
[BlackElo "2181"]
[Annotator "NA"]
[PlyCount "129"]
[EventDate "2017.??.??"]
[EventType "swiss"]
[EventCountry "ROU"]
[SourceTitle "playchess.com"]
[Source "ChessBase"]
[SourceQuality "1"]
[TimeControl "40/5400+30:1800+30"]

1. e4 {[%emt 0:00:00]} c5 {[%emt 0:00:03]} 2. Nf3 {[%emt 0:00:00]} d6 {[%emt 0:00:03]} 3. d4 {[%emt 0:00:00]} cxd4 {[%emt 0:00:03]} 4. Nxd4 {[%emt 0:00:00]} Nf6 {[%emt 0:00:03]} 5. Nc3 {[%emt 0:00:01]} a6 {[%emt 0:00:03]} 6. Bg5 {[%emt 0:00:15]} e6 {[%emt 0:00:05]} 7. f4 {[%emt 0:00:16]} Qb6 {[%emt 0:00:13]} 8. Qd3 {[%emt 0:01:51]} Qxb2 {[%emt 0:01:37]} 9. Rb1 {[%emt 0:00:28]} Qa3 {[%emt 0:00:05]} 10. Bxf6 {[%emt 0:01:27]} gxf6 {[%emt 0:00:20]} 11. f5 {[%emt 0:00:09]} Nc6 {[%emt 0:03:43]} 12. fxe6 {[%emt 0:02:14]} fxe6 {[%emt 0:00:15]} 13. Nxc6 {[%emt 0:02:37]} bxc6 {[%emt 0:00:17]} 14. e5 {[%emt 0:20:32]} dxe5 {[%emt 0:09:05]} 15. Be2 {[%emt 0:03:05]} Bb4 {[%emt 0:12:26]} 16. Bh5+ {[%emt 0:05:33]} Ke7 {[%emt 0:02:14]} 17. Rb3 {[%emt 0:01:17]} Qc1+ {[%emt 0:01:42]} 18. Bd1 {[%emt 0:02:08]} Qf4 {[%emt 0:05:05]} 19. Rf1 {[%emt 0:04:06]} Qh4+ {[%emt 0:05:24]} 20. g3 {[%emt 0:01:40]} Bxc3+ {[%emt 0:00:30]} 21. Rxc3 {[%emt 0:02:29]} Qd4 {[%emt 0:00:41]} 22. Rxc6 {[%emt 0:08:35]} Qxd3 {[%emt 0:03:06]} 23. cxd3 {[%emt 0:00:07]} Bd7 {[%emt 0:00:13]} 24. Rc3 {[%emt 0:02:49]} Rac8 {[%emt 0:07:02]} 25. Ra3 {[%emt 0:01:48]} Bb5 {[%emt 0:05:51]} 26. Ba4 {[%emt 0:05:46]} Rc1+ {[%emt 0:15:42]} 27. Ke2 {[%emt 0:00:42]} Rxf1 {[%emt 0:00:57]} 28. Kxf1 {[%emt 0:00:06]} Rd8 {[%emt 0:00:58]} 29. Bxb5 {[%emt 0:01:04]} axb5 {[%emt 0:00:01]} 30. Ke2 {[%emt 0:00:09]} f5 {[%emt 0:04:22]} 31. Ra5 {[%emt 0:03:43]} Rd5 {[%emt 0:01:03]} 32. Ke3 {[%emt 0:00:53]} h5 {[%emt 0:03:12]} 33. h4 {[%emt 0:03:20]} Kf6 {[%emt 0:00:47]} 34. Ra8 {[%emt 0:00:34]} e4 {[%emt 0:11:46]} 35. dxe4 {[%emt 0:18:53]} Re5 {[%emt 0:00:15]} 36. Kf3 {[%emt 0:00:06]} Rxe4 {[%emt 0:00:27]} 37. Ra5 {[%emt 0:00:38]} Rb4 {[%emt 0:02:30]} 38. Ra6 {[%emt 0:01:12]} Ke5 {[%emt 0:06:16]} 39. Ra5 {[%emt 0:01:03]} Kf6 {[%emt 0:00:31]} 40. Ra6 {[%emt 0:00:00]} Ke5 {[%emt 0:00:55]} 41. Ra5 {[%emt 0:00:31]} Kd6 {[%emt 0:07:52]} 42. Ra6+ {[%emt 0:01:01]} Kd5 {[%emt 0:00:09]} 43. Ra5 {[%emt 0:00:31]} Kc5 {[%emt 0:01:42]} 44. Ra6 {[%emt 0:00:16]} Re4 {[%emt 0:01:13]} 45. Ra8 {[%emt 0:00:34]} Ra4 {[%emt 0:01:43]} 46. Rc8+ {[%emt 0:01:12]} Kd6 {[%emt 0:02:09]} 47. Rc2 {[%emt 0:01:40]} e5 {[%emt 0:00:32]} 48. Rd2+ {[%emt 0:00:35]} Rd4 {[%emt 0:00:13]} 49. Rb2 {[%emt 0:00:29]} b4 {[%emt 0:00:09]} 50. Rb3 {[%emt 0:01:51]} Rc4 {[%emt 0:01:18]} 51. Ke2 {[%emt 0:04:52]} e4 {[%emt 0:01:52]} 52. a3 {[%emt 0:01:02]} Rc3 {[%emt 0:01:33]} 53. Rxb4 {[%emt 0:00:52]} Rxg3 {[%emt 0:00:28]} 54. Rb5 {[%emt 0:01:04]} Ke6 {[%emt 0:00:55]} 55. a4 {[%emt 0:00:35]} Rd3 {[%emt 0:01:09]} 56. a5 {[%emt 0:01:05]} Rd5 {[%emt 0:00:16]} 57. Rb6+ {[%emt 0:00:44]} Ke5 {[%emt 0:00:14]} 58. a6 {[%emt 0:00:04]} Kf4 {[%emt 0:00:55]} 59. Rb8 {[%emt 0:01:37]} Ra5 {[%emt 0:00:15]} 60. Ra8 {[%emt 0:00:07]} Ra2+ {[%emt 0:00:47]} 61. Kd1 {[%emt 0:00:49]} e3 {[%emt 0:00:58]} 62. Kc1 {[%emt 0:01:59]} e2 {[%emt 0:00:39]} 63. Re8 {[%emt 0:00:14]} Kf3 {[%emt 0:00:51]} 64. Re5 {[%emt 0:01:05]} f4 {[%emt 0:00:11]} 65. Re4 0-1